Cogmind - Beta 14 @@@ ROGUE MODE // 2024.10.05 @ 02:48:08 Player: THN-L0C Result: Destroyed by 1C-UTU with 1C-UTU's Sword "Choppy" Performance ------------- Evolutions (1) 500 Regions Visited (5) 1000 Robots Destroyed (69) 345 Value Destroyed (1268) 1268 Prototype IDs (2) 40 Alien Tech Used (0) 0 Bonus (-1466) -1466 TOTAL SCORE: 1687 Bonus ------- Follower Combat Kills 68 Met Imprinter 300 Was Imprinted 300 Friendly Fire -2134 Cogmind --------- Core Integrity 0/400 Matter 300/300 Energy 83/100 System Corruption 8% Temperature Hot (260) Movement Walking (210) Ox1 Location -7/Zion Parts ------- > --- POWER (1) -------- (None) > --- PROPULSION (3) --- Makeshift Leg > --- UTILITY (2) ------ Large Storage Unit > --- WEAPON (3) ------- Makeshift Laser (fused) Barrage Gun > --- INVENTORY (15) --- Makeshift Power Source Angular Momentum Engine Makeshift Leg Makeshift Leg Makeshift Leg Makeshift Leg Advanced Heat Sink Improved Cooling System Improved Cooling System High-capacity Matter Pod (200) Makeshift Power Shielding Makeshift Propulsion Shielding Makeshift Weapon Shielding Makeshift Hammer Makeshift Hammer Peak State ------------ > --- POWER ------------ Antimatter Reactor > --- PROPULSION ------- Makeshift Leg Makeshift Leg Makeshift Leg > --- UTILITY ---------- Large Storage Unit Layered Medium Armor Plating > --- WEAPON ----------- Makeshift Laser Rocket Launcher Makeshift Axe > --- INVENTORY -------- Improved Deuterium Engine Makeshift Power Source Angular Momentum Engine Makeshift Leg Makeshift Leg Advanced Heat Sink Advanced Heat Sink Advanced Heat Sink High-capacity Matter Pod Particle Charger Particle Charger Makeshift Power Shielding Layered Medium Armor Plating Makeshift Shrapnel Gun Self-destruct Interrupter [Rating: 41] Favorites ----------- Power Improved Deuterium Engine Engine Improved Deuterium Engine Power Core Light Nuclear Core Reactor Antimatter Reactor Propulsion Aluminum Leg Treads Light Treads Leg Aluminum Leg Wheel Wheel Utility Medium Storage Unit Device Seismic Detector Storage Medium Storage Unit Protection Layered Medium Armor Plating Weapon Makeshift Laser Energy Gun Makeshift Laser Ballistic Gun Shotgun Launcher Mini Grenade Launcher Impact Weapon Mace Slashing Weapon Makeshift Axe Build | -11 -10 -10 -9 -9 -7 ------- Run | Yrd Mat Min Mat Min Zio Slots Evolved 2 | . . . 2 . . Power . | . . . . . . Propulsion 1 | . . . 1 . . Utility . | . . . . . . Weapon 1 | . . . 1 . . Parts Attached 77 | 8 4 . 8 6 51 Power 13 | 2 1 . 1 . 9 Engine 11 | 2 . . 1 . 8 Core 1 | . 1 . . . . Reactor 1 | . . . . . 1 Propulsion 31 | 2 . . 1 6 22 Treads 2 | 1 . . 1 . . Leg 28 | 1 . . . 5 22 Wheel 1 | . . . . 1 . Hover . | . . . . . . Flight . | . . . . . . Utility 13 | 2 1 . . . 10 Device 7 | 1 . . . . 6 Storage 4 | 1 1 . . . 2 Processor . | . . . . . . Hackware . | . . . . . . Protection 2 | . . . . . 2 Artifact . | . . . . . . Weapon 20 | 2 2 . 6 . 10 Energy Gun 5 | 1 . . . . 4 Energy Cannon . | . . . . . . Ballistic Gun 10 | 1 2 . 5 . 2 Ballistic Cannon . | . . . . . . Launcher 2 | . . . 1 . 1 Special Weapon . | . . . . . . Impact Weapon 1 | . . . . . 1 Slashing Weapon 2 | . . . . . 2 Piercing Weapon . | . . . . . . Special Melee Weapon . | . . . . . . Unidentified Prototypes 2 | . . . 1 . 1 Parts Lost 20 | . 1 . 4 1 14 Power 8 | . 1 . 1 1 5 Propulsion 6 | . . . 2 . 4 Utility 2 | . . . 1 . 1 Weapon 4 | . . . . . 4 Highest Loss Streak 4 | . 1 . 3 1 4 To Critical Strikes 1 | . . . . . 1 Average Slot Usage (%) 97 | . 99 100 81 71 98 Engine 8 | . 6 . 6 2 9 Core 1 | . 6 14 1 . . Reactor 1 | . . . . . 1 Treads 1 | . 14 14 16 10 . Leg 30 | . 14 14 6 9 32 Device 9 | . 14 14 7 . 8 Storage 11 | . 14 14 11 11 11 Protection 1 | . . . . . 1 Energy Gun 8 | . 2 . . . 9 Ballistic Gun 10 | . 25 28 25 22 8 Launcher 8 | . . . 4 11 9 Slashing Weapon 2 | . . . . . 2 Peak Build Rating 41 | 7 9 10 14 12 41 Average Rating 22 | 4 7 9 11 10 24 On Entrance 8 | . 7 9 10 12 10 Naked Turns . | . . . . . . Heaviest Build 53 | 14 20 20 24 24 53 Greatest Support 60 | 20 20 20 43 30 60 Greatest Overweight (x) 2 | 1 . . 1 1 2 Average Overweight (x) . | . . . . . . Largest Inventory Capacity 15 | 8 10 10 10 10 15 Average Capacity 11 | 7 9 10 10 10 11 Most Carried 15 | 1 5 8 10 10 15 Average Carried 9 | . 3 5 9 10 10 Final Capacity 15 | 8 10 10 10 10 15 Final Carried 15 | 1 5 8 10 10 15 Class Distribution -------------------- 35% | Gunner 22% | Scavenger-Mutant 13% | Mutant 11% | Derelict-Mutant 10% | Bomber 3% | Scavenger-Gunner 3% | Scavenger-Skirmisher Dominant Class ---------------- Mutant | -10/Materials Mutant | -10/Mines Gunner | -9/Materials Gunner | -9/Mines Gunner | -7/Zion Resources | -11 -10 -10 -9 -9 -7 ----------- Run | Yrd Mat Min Mat Min Zio Matter Collected 1504 | 161 214 168 54 180 727 Remotely . | . . . . . . Salvage Created 2242 | 103 245 135 327 224 1208 Parts 150 | 12 13 14 25 10 76 Haulers Intercepted 1 | . . . 1 . . Recyclers Shooed 6 | 2 . 1 2 1 . Parts Field Recycled . | . . . . . . Retrieved Matter . | . . . . . . Parts Self-Destructed . | . . . . . . Prevented . | . . . . . . Kills | -11 -10 -10 -9 -9 -7 ------- Run | Yrd Mat Min Mat Min Zio Combat Hostiles Destroyed 23 | . 6 1 7 5 4 Guns 11 | . 6 1 . 1 3 AOE 11 | . . . 7 4 . Classes Destroyed 13 | 2 1 2 3 . 5 Worker 4 | . . 1 2 1 . Builder 3 | . . 1 2 . . Tunneler 5 | 3 . 1 1 . . Hauler 1 | . . . 1 . . Recycler 5 | 1 . 1 2 1 . Watcher 2 | . . . 2 . . Grunt 18 | . 6 1 6 5 . Sentry 1 | . . . 1 . . Enhanced Grunt 2 | . . . . . 2 Zionite 24 | . . . . . 24 Tinkerer 1 | . . . . . 1 Thug 1 | . . . . . 1 Savage 1 | . . . . . 1 Fireman 1 | . . . . . 1 Mutant 5 | . . . . . 5 Best Kill Streak 14 | 2 2 4 14 3 3 Combat Bots Only 4 | . 2 1 4 3 1 Max Kills in Single Turn 3 | 1 1 1 3 2 1 Gunslinging . | . . . . . . Exploded 1 | . . . 1 1 . Melee . | . . . . . . Uniques/NPCs Destroyed . | . . . . . . Combat | -11 -10 -10 -9 -9 -7 -------- Run | Yrd Mat Min Mat Min Zio Hostile Shots Fired 238 | . 47 1 31 19 140 Missed 67 | . 9 . 8 6 44 Damage Taken 3805 | . 507 18 374 251 2655 Core 539 | . 98 . 62 25 354 Absorbed by Shields . | . . . . . . Core Remaining (%) 80 | 100 . 60 . . . Volleys Fired 230 | 12 25 7 19 9 158 Largest 2 | 2 2 2 2 2 2 Hottest 183 | 60 40 40 53 53 183 Shots Fired 301 | 17 50 14 24 18 178 Gun 275 | 17 50 14 8 11 175 Cannon . | . . . . . . Launcher 26 | . . . 16 7 3 Special . | . . . . . . Kinetic 103 | 12 50 14 8 11 8 Thermal 166 | 5 . . . . 161 Explosive 26 | . . . 16 7 3 Electromagnetic 6 | . . . . . 6 Robot Hit Streak 9 | 5 7 7 4 5 9 Robot Miss Streak 4 | 1 3 1 3 4 4 Penetration Max . | . . . . . . Secondary Targets . | . . . . . . Shots Hit Robots 201 | 12 33 11 7 13 125 Core Hits 119 | 5 13 6 29 16 50 Critical Kills . | . . . . . . Critical Parts Destroyed . | . . . . . . Critical Strikes 13 | . . . . . 13 Burn 12 | . . . . . 12 Sever 1 | . . . . . 1 Melee Attacks 32 | . . . . . 32 Impact 19 | . . . . . 19 Slashing 13 | . . . . . 13 Piercing . | . . . . . . Sneak Attacks 15 | . . . . . 15 Combat Hostiles . | . . . . . . Follow-up Attacks . | . . . . . . Damage Inflicted 5247 | 144 411 140 1202 489 2861 Guns 2487 | 144 411 140 71 112 1609 Cannons . | . . . . . . Explosions 1711 | . . . 1131 375 205 Melee 1047 | . . . . . 1047 Ramming 2 | . . . . 2 . Kinetic 882 | 101 411 140 71 112 47 Thermal 1546 | 43 . . . . 1503 Explosive 1648 | . . . 1131 375 142 Electromagnetic 122 | . . . . . 122 Impact 128 | . . . . . 128 Slashing 919 | . . . . . 919 Piercing . | . . . . . . Highest Corruption 8 | . . . . . 8 Average Corruption 3 | . . . . . 3 Corruption Purged . | . . . . . . Corruption Blocked . | . . . . . . Effects 11 | . . . . . 11 Message Errors 2 | . . . . . 2 Matter Fused 2 | . . . . . 2 Heat Flow Errors 4 | . . . . . 4 Energy Discharges 1 | . . . . . 1 Parts Fused 1 | . . . . . 1 Data Loss (minor) 1 | . . . . . 1 Overload Shots 2 | . . . . . 2 Effects 1 | . . . . . 1 Short Circuit 1 | . . . . . 1 Overflow Damage 145 | . . . 14 13 118 Projectiles . | . . . . . . Explosions 61 | . . . 14 13 34 Melee 84 | . . . . . 84 Knockbacks . | . . . . . . Impact . | . . . . . . Kinetic . | . . . . . . Secondary . | . . . . . . Self-Inflicted Damage 148 | . . . 52 63 33 Shots 4 | . . . 1 2 1 Rammed . | . . . . . . Targets Rammed 1 | . . . . 1 . Kicked 1 | . . . . 1 . Crushed . | . . . . . . Highest Temperature 287 | . 24 . 2 16 287 Average Temperature 75 | . 9 . 1 10 84 Received Heat Transfer 993 | . 303 9 105 123 453 Effects 1 | . . . . . 1 Interference 1 | . . . . . 1 Siege Activations . | . . . . . . Robots Corrupted 2 | . . . . . 2 Combat Hostiles 1 | . . . . . 1 Parts Fried 3 | . . . . . 3 Impact Corruptions 2 | . . . . . 2 Robots Melted 1 | . . . . . 1 Combat Hostiles . | . . . . . . Parts Melted 13 | . . . . . 13 Heat Transferred 4333 | 100 . . . . 4233 Parts Sabotaged . | . . . . . . Parts Stolen . | . . . . . . Parts Stripped . | . . . . . . Power Chain Reactions 1 | . . . . . 1 Alert | -11 -10 -10 -9 -9 -7 ------- Run | Yrd Mat Min Mat Min Zio Peak Influence 334 | 20 199 97 334 289 . Initial 130 | . 13 77 . 130 . Average 76 | 6 94 45 121 204 . Maximum Alert Level 1 | . . . 1 1 . Low Security (%) 89 | 100 100 100 67 34 . Level 1 10 | . . . 32 65 . Level 2 . | . . . . . . Level 3 . | . . . . . . Level 4 . | . . . . . . Level 5 . | . . . . . . High Security . | . . . . . . Max Security . | . . . . . . Squads Dispatched 1 | . . . 1 . . Investigation . | . . . . . . Extermination . | . . . . . . Reinforcement 1 | . . . 1 . . Assault . | . . . . . . Garrison . | . . . . . . Intercept . | . . . . . . Searches Triggered . | . . . . . . Construction Impeded . | . . . . . . Haulers Reinforced . | . . . . . . Active Scanning Responses . | . . . . . . Cargo Convoy Interrupts . | . . . . . . Stealth | -11 -10 -10 -9 -9 -7 --------- Run | Yrd Mat Min Mat Min Zio Distress Signals 3 | . . . 3 . . Communications Jammed . | . . . . . . Distress Signals . | . . . . . . Times Spotted 64 | . 9 2 14 5 34 Peak Tracking Total 5 | . 4 2 5 3 4 Tactical Retreats 2 | . 1 . . . 1 Traps | -11 -10 -10 -9 -9 -7 ------- Run | Yrd Mat Min Mat Min Zio Traps Triggered . | . . . . . . Indirectly . | . . . . . . Trap Hack Attempts . | . . . . . . Triggered . | . . . . . . Disarmed . | . . . . . . Reprogrammed . | . . . . . . Reused . | . . . . . . Traps Extracted . | . . . . . . Installed . | . . . . . . Triggered . | . . . . . . Machines | -11 -10 -10 -9 -9 -7 ---------- Run | Yrd Mat Min Mat Min Zio Machines Disabled 4 | . . . 3 . 1 Max in Single Turn 1 | . . . 1 . 1 Machines Repaired . | . . . . . . Machines Dismantled . | . . . . . . Machines Sabotaged . | . . . . . . Overloaded Fab Kills . | . . . . . . Hacking | -11 -10 -10 -9 -9 -7 --------- Run | Yrd Mat Min Mat Min Zio Machines Accessed 1 | . 1 . . . . Terminals 1 | . 1 . . . . Fabricators . | . . . . . . Repair Stations . | . . . . . . Recycling Units . | . . . . . . Scanalyzers . | . . . . . . Garrison Access . | . . . . . . Total Hacks 4 | . 4 . . . . Successful 2 | . 2 . . . . Failed 2 | . 2 . . . . Catastrophic . | . . . . . . Database Lockouts . | . . . . . . Manual 5 | . 4 . . . 1 Terminals 4 | . 4 . . . . Fabricators . | . . . . . . Repair Stations . | . . . . . . Recycling Units . | . . . . . . Scanalyzers . | . . . . . . Garrison Access . | . . . . . . Terminal Hacks . | . . . . . . Fabricator Hacks . | . . . . . . Repair Station Hacks . | . . . . . . Recycling Unit Hacks . | . . . . . . Scanalyzer . | . . . . . . Garrison Access Hacks . | . . . . . . Unauthorized Hacks 2 | . 2 . . . . Terminals 2 | . 2 . . . . Botnet 1 | . 1 . . . . Skim 1 | . 1 . . . . Fabricators . | . . . . . . Repair Stations . | . . . . . . Recycling Units . | . . . . . . Scanalyzers . | . . . . . . Garrison Access . | . . . . . . Data Cores Recovered . | . . . . . . Used . | . . . . . . Hacking Detections 1 | . 1 . . . . Full Trace Events . | . . . . . . Feedback Events . | . . . . . . Feedback Blocked . | . . . . . . Robot Schematics Acquired . | . . . . . . Robots Built . | . . . . . . Authchips . | . . . . . . Time . | . . . . . . Total Robot Build Rating . | . . . . . . Part Schematics Acquired . | . . . . . . Parts Built . | . . . . . . Authchips . | . . . . . . Time . | . . . . . . Total Part Build Rating . | . . . . . . Parts Repaired . | . . . . . . Time . | . . . . . . Parts Recycled . | . . . . . . Recycled Matter . | . . . . . . Retrieved Matter . | . . . . . . Retrieved Components . | . . . . . . Parts Scanalyzed . | . . . . . . Part Schematics Acquired . | . . . . . . Parts Damaged . | . . . . . . Bothacking | -11 -10 -10 -9 -9 -7 ------------ Run | Yrd Mat Min Mat Min Zio Used RIF Installer . | . . . . . . Robots Hacked . | . . . . . . Non-combat . | . . . . . . Combat . | . . . . . . Robot Hacks Applied . | . . . . . . Relay Couplers Released . | . . . . . . Fabnet Peak Effective % . | . . . . . . Robots Rewired . | . . . . . . Allies Hacked . | . . . . . . Hacks Repelled . | . . . . . . Allies | -11 -10 -10 -9 -9 -7 -------- Run | Yrd Mat Min Mat Min Zio Total Allies 9 | . . 3 . . 6 Largest Group 6 | . . 3 2 . 6 Highest-Rated Group 338 | . . 40 32 . 338 Highest-Rated Ally 96 | . . 16 16 . 96 Total Orders . | . . . . . . Ally Attacks 28 | . . 15 13 . . Total Damage 332 | . . 165 167 . . Kills 2 | . . 1 1 . . Allies Corrupted 1 | . . . . . 1 Allies Melted 1 | . . . 1 . . Intel | -11 -10 -10 -9 -9 -7 ------- Run | Yrd Mat Min Mat Min Zio Robot Analysis Total . | . . . . . . Derelict Logs Recovered 3 | . . 3 . . . Drone Launches . | . . . . . . Drone Recoveries . | . . . . . . Exploration | -11 -10 -10 -9 -9 -7 ------------- Run | Yrd Mat Min Mat Min Zio Turns Passed 12454 | 117 329 832 293 120 10763 Spaces Moved 3815 | 52 143 506 132 47 2935 Core 11 | 11 . . . . . Treads 864 | 41 143 506 132 42 . Legs 2940 | . . . . 5 2935 Wheels . | . . . . . . Hover . | . . . . . . Flight . | . . . . . . Fastest Speed 50 | 50 160 160 160 120 120 Average Speed 133 | 142 160 160 179 177 125 Slowest Speed 260 | 160 160 160 240 240 260 Overloaded Moves . | . . . . . . Propulsion Burnouts . | . . . . . . Robots Hopped . | . . . . . . Cave-ins Triggered . | . . . . . . Exploration Rate (%) 44 | 5 25 98 23 25 90 Regions Visited 5 Branch Regions 3 Pre-discovered Areas 1 | . . 1 . . . Known Exits Taken . | . . . . . . Unknown Exits Taken 5 | 1 1 1 1 1 . Scrap Searched 3 | . . 1 . . 2 Spaces Dug . | . . . . . . Terrain Destroyed 105 | . . . 48 52 5 Melee . | . . . . . . Projectile . | . . . . . . AOE 105 | . . . 48 52 5 Terrain Rammed . | . . . . . . Walls Destroyed . | . . . . . . Machines Disabled . | . . . . . . Actions | -11 -10 -10 -9 -9 -7 --------- Run | Yrd Mat Min Mat Min Zio Total 10818 | 74 191 515 165 64 9809 Wait 6593 | 2 18 . . . 6573 Move 3810 | 51 142 505 131 46 2935 Hop . | . . . . . . Pick Up 35 | 1 2 3 3 . 26 Fast Attach 22 | 7 1 . 3 2 9 Attach 6 | . . . . . 6 Detach . | . . . . . . Swap 49 | 1 3 . 5 4 36 Drop 40 | . . . 4 2 34 Fire 230 | 12 25 7 19 9 158 Melee 32 | . . . . . 32 Ram . | . . . . . . Kick 1 | . . . . 1 . Crush . | . . . . . . Escape Stasis . | . . . . . . Rewire . | . . . . . . Trap . | . . . . . . Miscellaneous . | . . . . . . Route ------- -11/Scrapyard -10/Materials (discovered 2 exits: *Mat / [*Min]) -10/Mines (discovered 2 exits: *Mat x2) -9/Materials -9/Mines -7/Zion (discovered 1 exit: [*Pro]) History --------- Turn | Location | Event 21 | -11/Scrapyard | Discovered new exit (range 15) 118 | -11/Scrapyard | Entered Materials 303 | -10/Materials | Build established: Mutant 303 | -10/Materials | Discovered new exit (range 8) 414 | -10/Materials | Discovered new exit (range 16) 447 | -10/Materials | Entered Mines 467 | -10/Mines | Learned Materials garrison access intel 673 | -10/Mines | Discovered new exit (range 14) 700 | -10/Mines | Learned location of Storage (-9) 732 | -10/Mines | Discovered new exit (range 5) 743 | -10/Mines | Assisted by bots powering up and referring to "LRC-V3" 835 | -10/Mines | Learned Materials stockpile data 1165 | -10/Mines | Received a Rocket Launcher from a helpful Derelict 1279 | -10/Mines | Entered Materials 1279 | -9/Materials | Accompanied by 2 allies 1279 | -9/Materials | Evolved 2 slots: Propulsion x1, Weapon x1 1503 | -9/Materials | Lost 3 parts (2n1u) 1530 | -9/Materials | Discovered new exit (range 12) 1572 | -9/Materials | Entered Mines 1643 | -9/Mines | Build established: Gunner 1667 | -9/Mines | A Derelict revealed a hidden shortcut to a safe place 1684 | -9/Mines | Met a Derelict bent on vengeance 1692 | -9/Mines | Entered Zion 1800 | -7/Zion | Discovered new exit (range 11) 2123 | -7/Zion | Build established: Scavenger-Skirmisher 2489 | -7/Zion | Build established: Gunner 3316 | -7/Zion | Given A8's code to call for help 6399 | -7/Zion | Build established: Bomber 7287 | -7/Zion | Met Imprinter 7788 | -7/Zion | Imprinted 7790 | -7/Zion | Declared Zion's savior 7946 | -7/Zion | Build established: Derelict-Mutant 8437 | -7/Zion | Enhanced Grunt warped into view, answering call for help 8437 | -7/Zion | Enhanced Grunt warped into view, answering call for help 8552 | -7/Zion | Murdered 4 allies 8623 | -7/Zion | Attacked by Zionites 8757 | -7/Zion | Build established: Scavenger-Mutant 9986 | -7/Zion | Build established: Derelict-Mutant 10669 | -7/Zion | Build established: Scavenger-Mutant 10764 | -7/Zion | Core integrity fell below 50% 12043 | -7/Zion | Build established: Scavenger-Gunner 12278 | -7/Zion | Core integrity fell below 20% 12288 | -7/Zion | Lost 4 parts (2p1n1w) 12442 | -7/Zion | 1C-UTU came to Zion's defense 12455 | -7/Zion | Destroyed by 1C-UTU with 1C-UTU's Sword "Choppy" Last Messages --------------- 12390_ Acquired 10 matter. 12393_ Acquired Mak. Power Source. 12398_ System corrupted: Heat flow error (+121). 12400_ Acquired 10 matter. 12407_ Dropped Mak. Leg. 12410_ Dropped Broken Mak. Leg. 12415_ %,ZYWV0PNW QT APSFEGW 12417_ Acquired 6 matter. 12418_ Acquired 10 matter. 12422_ Acquired 4 matter. 12442_ System corrupted: Heat flow error (+225). 12442_ 1C-UTU: "How about picking on someone your own size!" 12450_ 1C-UTU follow-up attacks with Prototype Slashing Weapon. 12450_ Imp. Carbon-fiber Leg severed. 12451_ Lyr. Medium Armor Plating destroyed. 12452_ Mak. Leg destroyed. 12452_ 1C-UTU follow-up attacks with Prototype Slashing Weapon. 12452_ Mak. Power Source destroyed. 12452_ 1C-UTU suffers critical hit (Burn). 12454_ 1C-UTU follow-up attacks with Prototype Slashing Weapon. Map ----- +----------------------------------------------------+ | ?????????????????????????????????????????????????? | | ?????????????????????????????????????????????????? | | ?????????????????????????????????????????????????? | | ?????????????????????????????????????????????????? | | ?????????????????????????????????????????????????? | | ?????????????????????????????????????????????????? | | ?????????????????????????????????????????????????? | | ?????????????????????????????????????????????????? | | ?????????????????????????????????????????????????? | | ?????????????????????????????????????????????????? | | ?????????????????????????????????????????????????? | | ?????????????????????#####???????????????????????? | | ????????????????????## [ ##??????????????????????? | | ????????????????????# = ! #?????????????##?###???? | | ????????????????????#! !#?????????????#"##"###?? | | ????????????????????## /##???????????###""""""#?? | | ????????????????????## ###???????????#""##" " ##? | | ????????????????????#" = ###????????###""" #? | | ??????????????????###""! #????#?###""#"" ## | | ??????????????????#"""" ! ###?#"#""""""" # | | ????"######????####"= ##""""""""" | | ????""""""##???#"#"*% #""" | | ??????# ##?##"""%!=/"" ##"" """"" | | ??????" ####"""%!]% "" ##""" """"" | | ??????#%%= " " ! =""""" # #" """" " | | ??##### *== ! |! "##""@ " " """" " | | ??" %/ %= %%= %%="""""" l"" z """ " | | ??" "! ! [=!! = !="#""""= "" """" | | ?#####! ! *" ! = = / """""""""" """" | | ?"""" / = !!= "" = """"""""""" """ | | ?#### ##! " "" """""####""""""" | | ???# " # # !! =%#" "" " ""######""""" | | ???######### !!/ = %"""""" ""#""#"##"" | | ??????????#" %*% [ "" """""""""" | | ?????????##" ! """ | | ?????????#"" "" """" | | ?????????#""" %""""""""" | | ?????????#"#"" """#""" """"#""" " | | ?????????####"" """#" """"""""""" """" | | ????????????#""" """ """""""""#" """"" | | ????????????##"" """ """""#"### "###" | | ????????????#"" %"""" "###### ###?## | | ????????????#"" """" " ""#???###????? | | ????????????##" "" %! "" "" ""#??????????? | | ????????????#""" """"" "" """""#"#?????????? | | ????????????###""""#""""% """""#???????????? | | ?????????????#"""####""" % " """##"???????????? | | ?????????????#"###?#"""" """ """###???????????? | | ?????????????##?####""" "#" "#"#???????????? | | ?????????????####"#"#" """ ""#????????????? | +----------------------------------------------------+ Best States ------------- Heat Dissipation 55 Energy Generation 21 Energy Capacity 825 Matter Stores 300 Matter Capacity 300 Sight Range 16 Terrain Scan Range 16 Terrain Scan Density 10 Armor Coverage 225 Evasion (%) 55 Recoil Reduction 2 Particle Charging 22 Item Schematics ----------------- None Robot Schematics ------------------ None Fabricated ------------ Nothing Alien Tech Used ----------------- None Achievements -------------- None Challenges ------------ None Game ------ Seed WeaponsMassCasing Manual? 0 Play Time 00:47:23 Cumulative 299.7 hours Start 2024.10.05 @ 02:17:02 End 2024.10.05 @ 02:48:08 Sessions 1 Manual Loads 0 Difficulty Rogue Special Mode None Game No. 237 Rogue 237 Adventurer 0 Explorer 0 Win Type - Total 2 Types 1/0/0/1/0/0/0/0/0 Lore% 74 Gallery% 78 Achievement% 58 Wizard Run 0 Options --------- Layout 2 ASCII 0 Keyboard 1 Movement Vi Keybinds 0 Fullscreen 1 Font 32/SmallcapsGlow Map View 77x44 Zoom Use 0% Tactical HUD 1 Map Filters NONE Filters NONE Steam 1 RUN: 047fdab4-9c54-4917-9c6d-ba7aec608cf3